[Event "5th EKA IIFL Investment 2019"]
[Site "Mumbai"]
[Date "2019.12.31"]
[Round "2.26"]
[White "Shiva Pavan Teja Sharma U"]
[Black "Harshavardhan G B"]
[Result "1/2-1/2"]
[ECO "B67"]
[WhiteElo "2072"]
[BlackElo "2344"]
[Annotator "ChessBase"]
[PlyCount "133"]
[EventDate "2019.12.30"]
[EventType "swiss"]
[EventCountry "IND"]
[SourceTitle "playchess.com"]
[Source "ChessBase"]
[SourceQuality "1"]
[TimeControl "40/5400+30:1800+30"]

1. e4 {[%emt 0:00:00]} c5 {[%emt 0:00:00]} 2. Nf3 {[%emt 0:00:00]} d6 {[%emt 0:00:00]} 3. d4 {[%emt 0:00:23]} cxd4 {[%emt 0:00:00]} 4. Nxd4 {[%emt 0:00:07]} Nf6 {[%emt 0:00:00]} 5. Nc3 {[%emt 0:00:12]} Nc6 {[%emt 0:00:01]} 6. Bg5 {[%emt 0:01:12]} e6 {[%emt 0:00:07]} 7. Qd2 {[%emt 0:00:24]} a6 {[%emt 0:00:06]} 8. O-O-O {[%emt 0:00:37]} Bd7 {[%emt 0:00:05]} 9. f3 {[%emt 0:00:23]} Be7 {[%emt 0:00:30]} 10. Be3 {[%emt 0:00:24]} h5 {[%emt 0:03:54]} 11. Kb1 {[%emt 0:03:04]} Qc7 {[%emt 0:01:19]} 12. Be2 {[%emt 0:07:38]} Nxd4 {[%emt 0:01:41]} 13. Bxd4 {[%emt 0:03:18]} b5 {[%emt 0:00:39]} 14. Bxf6 {[%emt 0:05:15]} gxf6 {[%emt 0:00:07]} 15. Bd3 {[%emt 0:00:17]} Qb6 {[%emt 0:08:06]} 16. Rhf1 {[%emt 0:01:11]} O-O-O {[%emt 0:01:30]} 17. Qf2 {[%emt 0:08:15]} Kb7 {[%emt 0:02:17]} 18. f4 {[%emt 0:00:53]} Qxf2 {[%emt 0:01:06]} 19. Rxf2 {[%emt 0:00:07]} Bc6 {[%emt 0:00:52]} 20. f5 {[%emt 0:06:15]} b4 {[%emt 0:01:04]} 21. Ne2 {[%emt 0:02:38]} e5 {[%emt 0:00:43]} 22. c4 {[%emt 0:01:55]} Rdg8 {[%emt 0:07:22]} 23. Ng3 {[%emt 0:02:07]} Rg4 {[%emt 0:06:57]} 24. Re1 {[%emt 0:12:02]} Rhg8 {[%emt 0:03:59]} 25. Ree2 {[%emt 0:01:22]} Bd8 {[%emt 0:06:31]} 26. Nxh5 {[%emt 0:09:50]} Rh8 {[%emt 0:01:40]} 27. h3 {[%emt 0:01:40]} Rgg8 {[%emt 0:11:10]} 28. g4 {[%emt 0:00:59]} Rh6 29. Rg2 {[%emt 0:02:26]} a5 {[%emt 0:04:06]} 30. b3 {[%emt 0:02:13]} Kc7 {[%emt 0:02:02]} 31. Bc2 {[%emt 0:01:56]} Kd7 {[%emt 0:00:42]} 32. Rd2 {[%emt 0:02:29]} Kc7 {[%emt 0:03:28]} 33. Kc1 {[%emt 0:04:32]} Be7 {[%emt 0:00:26]} 34. Kd1 {[%emt 0:01:19]} Rhh8 {[%emt 0:00:30]} 35. Ke1 {[%emt 0:00:57]} Ra8 {[%emt 0:00:18]} 36. Kd1 {[%emt 0:00:55]} a4 {[%emt 0:02:03]} 37. Rge2 {[%emt 0:01:52]} axb3 {[%emt 0:02:22]} 38. Bxb3 {[%emt 0:00:18]} Ra3 {[%emt 0:00:23]} 39. Kc1 {[%emt 0:02:49]} Rha8 {[%emt 0:01:07]} 40. Kb1 {[%emt 0:00:00]} Ba4 {[%emt 0:00:00]} 41. Rd3 {[%emt 0:04:05]} Kc6 {[%emt 0:11:47]} 42. Red2 {[%emt 0:02:58]} Bxb3 43. Rxb3 {[%emt 0:00:33]} Bd8 {[%emt 0:01:41]} 44. Rbd3 {[%emt 0:02:45]} Rxd3 {[%emt 0:00:38]} 45. Rxd3 {[%emt 0:00:05]} Be7 {[%emt 0:00:07]} 46. Ng3 {[%emt 0:03:00]} Kc5 {[%emt 0:00:19]} 47. Nf1 {[%emt 0:00:49]} Kxc4 {[%emt 0:00:57]} 48. Rd5 {[%emt 0:00:51]} Kc3 {[%emt 0:03:16]} 49. Ne3 {[%emt 0:02:59]} b3 {[%emt 0:00:44]} 50. axb3 {[%emt 0:02:51]} Rb8 {[%emt 0:01:21]} 51. Ka2 {[%emt 0:06:41]} Ra8+ {[%emt 0:00:08]} 52. Kb1 {[%emt 0:00:12]} Rh8 {[%emt 0:06:55]} 53. Rd1 {[%emt 0:03:39]} Kxb3 {[%emt 0:00:25]} 54. Rd3+ {[%emt 0:00:44]} Ka4 {[%emt 0:00:06]} 55. Nd5 {[%emt 0:00:30]} Bd8 {[%emt 0:01:04]} 56. Kc2 {[%emt 0:01:01]} Kb5 {[%emt 0:06:57]} 57. Kd1 {[%emt 0:01:18]} Rh6 {[%emt 0:03:26]} 58. Ke2 {[%emt 0:00:52]} Ba5 {[%emt 0:00:46]} 59. Nxf6 {[%emt 0:01:39]} Bd8 {[%emt 0:01:58]} 60. Nd5 {[%emt 0:04:51]} Bg5 {[%emt 0:03:11]} 61. Nc3+ {[%emt 0:01:43]} Kc4 {[%emt 0:01:12]} 62. Nd5 {[%emt 0:00:49]} Rh8 {[%emt 0:01:48]} 63. Nb6+ {[%emt 0:00:55]} Kc5 {[%emt 0:00:22]} 64. Na4+ {[%emt 0:00:24]} Kb4 {[%emt 0:00:54]} 65. Nb6 {[%emt 0:01:09]} Kc5 {[%emt 0:00:06]} 66. Na4+ {[%emt 0:00:50]} Kb4 {[%emt 0:00:06]} 67. Nb6 {[%emt 0:00:40]} 1/2-1/2

[Event "5th EKA IIFL Investment 2019"]
[Site "Mumbai"]
[Date "2019.12.31"]
[Round "2.27"]
[White "Ameir, Moheb"]
[Black "Sri Sai Baswanth P"]
[Result "1-0"]
[ECO "B06"]
[WhiteElo "2342"]
[BlackElo "2027"]
[Annotator "ChessBase"]
[PlyCount "67"]
[EventDate "2019.12.30"]
[EventType "swiss"]
[EventCountry "IND"]
[SourceTitle "playchess.com"]
[Source "ChessBase"]
[SourceQuality "1"]
[TimeControl "40/5400+30:1800+30"]

1. e4 {[%emt 0:00:00]} g6 {[%emt 0:00:01]} 2. d4 {[%emt 0:00:00]} Bg7 {[%emt 0:00:10]} 3. Nc3 {[%emt 0:00:00]} c6 {[%emt 0:00:08]} 4. Nf3 {[%emt 0:00:28]} d6 {[%emt 0:01:07]} 5. Be2 {[%emt 0:02:10]} Nf6 {[%emt 0:00:07]} 6. O-O {[%emt 0:00:18]} O-O {[%emt 0:00:09]} 7. h3 {[%emt 0:00:58]} Nbd7 {[%emt 0:00:52]} 8. a4 {[%emt 0:10:39]} e5 {[%emt 0:01:14]} 9. dxe5 {[%emt 0:03:29]} Nxe5 {[%emt 0:00:08]} 10. Nd4 {[%emt 0:03:22]} Re8 {[%emt 0:06:17]} 11. Re1 {[%emt 0:17:32]} a5 {[%emt 0:09:57]} 12. Bf1 {[%emt 0:05:50]} Ned7 {[%emt 0:06:28]} 13. Nb3 {[%emt 0:03:16]} Nb6 {[%emt 0:07:20]} 14. Bf4 {[%emt 0:08:27]} d5 {[%emt 0:04:30]} 15. Qd2 {[%emt 0:00:49]} Nc4 {[%emt 0:09:23]} 16. Bxc4 {[%emt 0:00:34]} dxc4 {[%emt 0:00:06]} 17. Qxd8 {[%emt 0:00:46]} Rxd8 {[%emt 0:00:08]} 18. Nxa5 {[%emt 0:00:22]} Nh5 {[%emt 0:06:01]} 19. Bh2 {[%emt 0:04:28]} Rd4 {[%emt 0:03:25]} 20. Bc7 Rd7 {[%emt 0:09:22]} 21. Bb6 {[%emt 0:02:29]} Rd2 {[%emt 0:00:19]} 22. Rad1 {[%emt 0:05:21]} Rxd1 {[%emt 0:11:27]} 23. Rxd1 {[%emt 0:00:22]} Bf6 {[%emt 0:03:45]} 24. Nxc4 {[%emt 0:06:36]} Be6 {[%emt 0:02:08]} 25. Nd6 {[%emt 0:03:23]} Bxc3 {[%emt 0:02:45]} 26. bxc3 {[%emt 0:00:01]} Rxa4 {[%emt 0:00:08]} 27. e5 {[%emt 0:06:22]} Ra2 {[%emt 0:00:49]} 28. Ne8 {[%emt 0:01:22]} Kf8 {[%emt 0:09:04]} 29. Rd8 {[%emt 0:02:18]} Ke7 {[%emt 0:00:45]} 30. Rb8 {[%emt 0:01:38]} Rxc2 {[%emt 0:00:55]} 31. g4 {[%emt 0:01:18]} Nf4 {[%emt 0:02:22]} 32. Nf6 {[%emt 0:01:55]} Bd7 {[%emt 0:03:21]} 33. Rxb7 {[%emt 0:00:02]} Rd2 {[%emt 0:00:10]} 34. Bd4 {[%emt 0:01:03]} 1-0

[Event "5th EKA IIFL Investment 2019"]
[Site "Mumbai"]
[Date "2019.12.31"]
[Round "2.35"]
[White "Shyaamnikhil P"]
[Black "Varun, Vij"]
[Result "1-0"]
[ECO "A49"]
[WhiteElo "2455"]
[BlackElo "1964"]
[Annotator "ChessBase"]
[PlyCount "69"]
[EventDate "2019.12.30"]
[EventType "swiss"]
[EventCountry "IND"]
[SourceTitle "playchess.com"]
[Source "ChessBase"]
[SourceQuality "1"]
[TimeControl "40/5400+30:1800+30"]

1. d4 {[%emt 0:00:00]} Nf6 {[%emt 0:00:00]} 2. Nf3 {[%emt 0:00:03]} g6 {[%emt 0:00:25]} 3. g3 {[%emt 0:00:17]} Bg7 {[%emt 0:00:06]} 4. Bg2 {[%emt 0:00:04]} O-O {[%emt 0:00:14]} 5. O-O {[%emt 0:00:05]} d6 {[%emt 0:00:11]} 6. a4 {[%emt 0:00:10]} c6 {[%emt 0:02:22]} 7. Re1 {[%emt 0:00:45]} Nbd7 {[%emt 0:00:33]} 8. e4 {[%emt 0:00:21]} e5 {[%emt 0:00:07]} 9. c3 {[%emt 0:01:15]} Qc7 {[%emt 0:01:07]} 10. Nbd2 {[%emt 0:02:46]} Re8 {[%emt 0:00:35]} 11. a5 {[%emt 0:03:13]} Rb8 {[%emt 0:04:54]} 12. Nc4 {[%emt 0:05:00]} b5 {[%emt 0:08:56]} 13. axb6 {[%emt 0:04:09]} axb6 {[%emt 0:00:03]} 14. dxe5 {[%emt 0:03:30]} dxe5 {[%emt 0:00:07]} 15. Nd6 {[%emt 0:08:54]} Re6 {[%emt 0:00:48]} 16. Nxc8 {[%emt 0:06:14]} Rxc8 {[%emt 0:00:10]} 17. b4 {[%emt 0:04:17]} b5 {[%emt 0:01:27]} 18. Qe2 {[%emt 0:01:33]} Ree8 {[%emt 0:01:55]} 19. Nd2 {[%emt 0:05:22]} Bf8 {[%emt 0:01:15]} 20. Nb3 {[%emt 0:01:52]} c5 {[%emt 0:03:41]} 21. bxc5 {[%emt 0:00:16]} Nxc5 {[%emt 0:00:11]} 22. Nxc5 {[%emt 0:00:04]} Qxc5 {[%emt 0:00:59]} 23. Bd2 {[%emt 0:01:47]} Red8 {[%emt 0:07:57]} 24. Reb1 {[%emt 0:05:50]} Rb8 {[%emt 0:02:53]} 25. Bg5 {[%emt 0:09:10]} Rd6 {[%emt 0:00:56]} 26. Rb3 {[%emt 0:01:30]} Ne8 {[%emt 0:03:08]} 27. Be3 {[%emt 0:02:19]} Qc6 {[%emt 0:01:41]} 28. Rab1 {[%emt 0:06:03]} Rdd8 {[%emt 0:06:40]} 29. Rxb5 {[%emt 0:01:38]} Rxb5 {[%emt 0:00:06]} 30. Qxb5 {[%emt 0:00:09]} Qxc3 {[%emt 0:07:49]} 31. Rc1 {[%emt 0:00:42]} Qd3 {[%emt 0:00:02]} 32. Qxe5 {[%emt 0:01:16]} Bg7 {[%emt 0:00:48]} 33. Qa5 {[%emt 0:01:37]} Nf6 {[%emt 0:01:13]} 34. Bf1 {[%emt 0:03:11]} Qd7 {[%emt 0:00:49]} 35. Bb5 {[%emt 0:00:25]} 1-0

[Event "5th EKA IIFL Investment 2019"]
[Site "Mumbai"]
[Date "2019.12.31"]
[Round "2.36"]
[White "Pandey Srishti"]
[Black "Koustav Chatterjee"]
[Result "1/2-1/2"]
[ECO "D93"]
[WhiteElo "2162"]
[BlackElo "2447"]
[Annotator "ChessBase"]
[PlyCount "81"]
[EventDate "2019.12.30"]
[EventType "swiss"]
[EventCountry "IND"]
[SourceTitle "playchess.com"]
[Source "ChessBase"]
[SourceQuality "1"]
[TimeControl "40/5400+30:1800+30"]

1. d4 {[%emt 0:00:00]} Nf6 {[%emt 0:00:00]} 2. Nf3 {[%emt 0:00:00]} g6 {[%emt 0:00:00]} 3. c4 {[%emt 0:00:09]} Bg7 {[%emt 0:00:00]} 4. Nc3 {[%emt 0:00:49]} d5 {[%emt 0:00:15]} 5. Bf4 {[%emt 0:00:15]} O-O {[%emt 0:00:08]} 6. e3 {[%emt 0:00:02]} c5 {[%emt 0:00:09]} 7. dxc5 {[%emt 0:00:05]} Ne4 {[%emt 0:00:06]} 8. Rc1 {[%emt 0:00:09]} Nd7 {[%emt 0:00:39]} 9. cxd5 {[%emt 0:01:37]} Qa5 {[%emt 0:00:21]} 10. Nd2 {[%emt 0:11:26]} Nxc3 {[%emt 0:14:31]} 11. bxc3 {[%emt 0:00:15]} Qxa2 {[%emt 0:01:20]} 12. Bc4 {[%emt 0:32:16]} Qa3 {[%emt 0:01:34]} 13. O-O {[%emt 0:05:34]} Qxc5 {[%emt 0:07:09]} 14. Bb3 {[%emt 0:04:31]} b5 {[%emt 0:21:55]} 15. c4 {[%emt 0:07:50]} Qb4 {[%emt 0:04:20]} 16. cxb5 {[%emt 0:03:32]} Nc5 {[%emt 0:00:06]} 17. Bc4 {[%emt 0:02:55]} Bf5 {[%emt 0:08:10]} 18. d6 {[%emt 0:07:23]} Nd3 {[%emt 0:10:08]} 19. e4 {[%emt 0:05:26]} Nxc1 {[%emt 0:03:22]} 20. exf5 {[%emt 0:00:15]} Nd3 {[%emt 0:00:05]} 21. dxe7 {[%emt 0:04:11]} Rfe8 {[%emt 0:05:59]} 22. Bg5 {[%emt 0:02:25]} Ne5 {[%emt 0:02:39]} 23. Bd5 {[%emt 0:00:04]} Rab8 {[%emt 0:00:55]} 24. Nf3 {[%emt 0:04:30]} Rxe7 {[%emt 0:07:09]} 25. Bxe7 {[%emt 0:00:15]} Qxe7 {[%emt 0:00:04]} 26. fxg6 {[%emt 0:00:42]} hxg6 {[%emt 0:00:12]} 27. Nxe5 {[%emt 0:01:09]} Bxe5 {[%emt 0:00:04]} 28. Qg4 {[%emt 0:02:32]} Kg7 {[%emt 0:00:39]} 29. Bc6 {[%emt 0:00:01]} Qf6 {[%emt 0:01:09]} 30. g3 {[%emt 0:03:30]} Bd4 {[%emt 0:00:46]} 31. Qe2 {[%emt 0:00:25]} Rd8 {[%emt 0:00:14]} 32. Qf3 {[%emt 0:00:44]} Bb6 {[%emt 0:00:48]} 33. Kg2 {[%emt 0:00:37]} Qb2 {[%emt 0:00:40]} 34. Bd5 {[%emt 0:00:32]} Rd7 {[%emt 0:00:19]} 35. Qb3 {[%emt 0:00:40]} Qd4 {[%emt 0:00:18]} 36. Bf3 {[%emt 0:00:10]} Rc7 {[%emt 0:00:27]} 37. Bc6 {[%emt 0:00:07]} Re7 {[%emt 0:00:25]} 38. Qd1 {[%emt 0:00:33]} Qb2 {[%emt 0:00:12]} 39. Qa1 {[%emt 0:00:11]} Qxa1 {[%emt 0:00:03]} 40. Rxa1 {[%emt 0:00:00]} Re2 {[%emt 0:00:00]} 41. Rf1 {[%emt 0:00:04]} 1/2-1/2

[Event "5th EKA IIFL Investment 2019"]
[Site "Mumbai"]
[Date "2019.12.31"]
[Round "2.37"]
[White "Rahman, Ziaur"]
[Black "Manish Kumar"]
[Result "1-0"]
[ECO "A15"]
[WhiteElo "2440"]
[BlackElo "2168"]
[Annotator "ChessBase"]
[PlyCount "141"]
[EventDate "2019.12.30"]
[EventType "swiss"]
[EventCountry "IND"]
[SourceTitle "playchess.com"]
[Source "ChessBase"]
[SourceQuality "1"]
[TimeControl "40/5400+30:1800+30"]

1. c4 {[%emt 0:00:00]} Nf6 {[%emt 0:00:00]} 2. Nf3 {[%emt 0:00:24]} g6 {[%emt 0:00:00]} 3. b3 {[%emt 0:00:10]} Bg7 {[%emt 0:00:00]} 4. Bb2 {[%emt 0:00:04]} O-O {[%emt 0:00:00]} 5. g3 {[%emt 0:00:02]} d5 {[%emt 0:00:39]} 6. Bg2 {[%emt 0:00:41]} c5 {[%emt 0:01:08]} 7. cxd5 {[%emt 0:00:12]} Nxd5 {[%emt 0:00:12]} 8. Bxg7 {[%emt 0:00:34]} Kxg7 {[%emt 0:00:03]} 9. O-O {[%emt 0:00:23]} Nc6 {[%emt 0:00:57]} 10. d4 {[%emt 0:00:45]} cxd4 {[%emt 0:05:50]} 11. Nxd4 {[%emt 0:00:49]} Nxd4 {[%emt 0:00:55]} 12. Qxd4+ {[%emt 0:00:07]} Nf6 {[%emt 0:00:03]} 13. Qe5 {[%emt 0:00:24]} Qd6 {[%emt 0:10:21]} 14. Qxd6 {[%emt 0:00:13]} exd6 {[%emt 0:00:01]} 15. Nc3 {[%emt 0:00:37]} Rd8 {[%emt 0:05:03]} 16. Rfd1 {[%emt 0:02:17]} Ne8 {[%emt 0:02:58]} 17. Rd4 {[%emt 0:03:16]} Kf8 {[%emt 0:05:03]} 18. Rad1 {[%emt 0:01:22]} Ke7 {[%emt 0:00:29]} 19. Nd5+ {[%emt 0:04:57]} Kf8 {[%emt 0:00:09]} 20. Ne3 {[%emt 0:01:02]} Rb8 {[%emt 0:03:36]} 21. Nc4 {[%emt 0:01:12]} Ke7 {[%emt 0:00:02]} 22. Na5 {[%emt 0:01:04]} Rd7 {[%emt 0:03:45]} 23. Rb4 {[%emt 0:06:53]} Kf8 {[%emt 0:01:03]} 24. Rc4 {[%emt 0:09:09]} Re7 {[%emt 0:01:57]} 25. Rdc1 {[%emt 0:06:10]} Bd7 {[%emt 0:02:11]} 26. e3 {[%emt 0:01:09]} b6 27. Nc6 {[%emt 0:01:10]} Bxc6 {[%emt 0:01:10]} 28. Rxc6 {[%emt 0:00:24]} Rbb7 {[%emt 0:01:06]} 29. R6c4 {[%emt 0:04:43]} Rbc7 {[%emt 0:00:12]} 30. Bc6 {[%emt 0:00:22]} Re5 {[%emt 0:03:03]} 31. b4 {[%emt 0:05:24]} Ke7 {[%emt 0:02:28]} 32. e4 {[%emt 0:03:33]} Kd8 {[%emt 0:02:43]} 33. f4 {[%emt 0:01:24]} Re6 {[%emt 0:01:10]} 34. Rd1 {[%emt 0:06:12]} Kc8 {[%emt 0:12:31]} 35. e5 {[%emt 0:01:54]} f6 {[%emt 0:02:27]} 36. exf6 {[%emt 0:11:22]} Nxf6 {[%emt 0:00:13]} 37. b5 {[%emt 0:00:17]} Kd8 {[%emt 0:03:04]} 38. h3 {[%emt 0:01:21]} Ke7 {[%emt 0:01:11]} 39. g4 {[%emt 0:00:25]} Nd7 {[%emt 0:03:20]} 40. Rcd4 {[%emt 0:00:00]} Nc5 {[%emt 0:00:00]} 41. Kf2 {[%emt 0:03:47]} a6 {[%emt 0:13:52]} 42. Bd5 {[%emt 0:01:30]} Rf6 {[%emt 0:00:46]} 43. Re1+ {[%emt 0:02:12]} Kf8 {[%emt 0:07:52]} 44. bxa6 {[%emt 0:11:47]} Nxa6 {[%emt 0:01:39]} 45. g5 {[%emt 0:00:24]} Rf5 {[%emt 0:00:19]} 46. Be6 {[%emt 0:00:36]} Rc2+ {[%emt 0:02:26]} 47. Kg1 {[%emt 0:00:21]} Rfc5 {[%emt 0:06:49]} 48. Rxd6 {[%emt 0:01:01]} Rc1 {[%emt 0:00:07]} 49. Rd8+ {[%emt 0:05:17]} Ke7 {[%emt 0:00:44]} 50. Rd7+ {[%emt 0:00:05]} Ke8 {[%emt 0:00:02]} 51. Rdd1 {[%emt 0:00:52]} Rxd1 {[%emt 0:00:06]} 52. Rxd1 {[%emt 0:00:03]} Ke7 {[%emt 0:00:37]} 53. Bg8 {[%emt 0:01:35]} Rc7 {[%emt 0:01:48]} 54. Bxh7 {[%emt 0:01:23]} Rc4 {[%emt 0:00:54]} 55. Rf1 {[%emt 0:03:20]} Kf7 {[%emt 0:00:10]} 56. f5 {[%emt 0:00:05]} gxf5 {[%emt 0:00:04]} 57. Bxf5 {[%emt 0:00:07]} Kg7 {[%emt 0:00:05]} 58. Kg2 {[%emt 0:06:30]} Nc5 {[%emt 0:00:34]} 59. Kg3 {[%emt 0:02:12]} Ne4+ {[%emt 0:00:25]} 60. Bxe4 {[%emt 0:00:14]} Rxe4 {[%emt 0:00:01]} 61. Rf6 {[%emt 0:01:22]} b5 {[%emt 0:00:26]} 62. h4 {[%emt 0:00:13]} Ra4 {[%emt 0:00:03]} 63. Rb6 {[%emt 0:00:12]} Rxa2 {[%emt 0:00:29]} 64. Rxb5 {[%emt 0:00:27]} Ra4 {[%emt 0:00:17]} 65. Rf5 {[%emt 0:00:17]} Kg6 {[%emt 0:00:44]} 66. Rf6+ {[%emt 0:00:05]} Kg7 {[%emt 0:00:01]} 67. Rf4 {[%emt 0:00:09]} Ra5 {[%emt 0:00:52]} 68. Kg4 {[%emt 0:00:08]} Ra1 {[%emt 0:00:16]} 69. Rb4 {[%emt 0:00:33]} Ra7 {[%emt 0:00:06]} 70. h5 {[%emt 0:00:15]} Rc7 {[%emt 0:00:26]} 71. h6+ {[%emt 0:00:14]} 1-0

[Event "5th EKA IIFL Investment 2019"]
[Site "Mumbai"]
[Date "2019.12.31"]
[Round "2.38"]
[White "Patil, Pratik"]
[Black "Khusenkhojaev, Muhammad"]
[Result "1/2-1/2"]
[ECO "C95"]
[WhiteElo "2167"]
[BlackElo "2427"]
[Annotator "ChessBase"]
[PlyCount "168"]
[EventDate "2019.12.30"]
[EventType "swiss"]
[EventCountry "IND"]
[SourceTitle "playchess.com"]
[Source "ChessBase"]
[SourceQuality "1"]
[TimeControl "40/5400+30:1800+30"]

1. e4 {[%emt 0:00:00]} e5 {[%emt 0:00:00]} 2. Nf3 {[%emt 0:00:00]} Nc6 {[%emt 0:00:00]} 3. Bb5 {[%emt 0:00:00]} a6 {[%emt 0:00:05]} 4. Ba4 {[%emt 0:00:00]} Nf6 {[%emt 0:00:04]} 5. O-O {[%emt 0:00:18]} Be7 {[%emt 0:00:06]} 6. Re1 {[%emt 0:00:11]} b5 {[%emt 0:00:07]} 7. Bb3 {[%emt 0:00:04]} d6 {[%emt 0:00:04]} 8. c3 {[%emt 0:00:06]} O-O {[%emt 0:00:05]} 9. h3 {[%emt 0:00:09]} Nb8 {[%emt 0:00:08]} 10. d4 {[%emt 0:00:20]} Nbd7 {[%emt 0:00:05]} 11. Nbd2 {[%emt 0:00:27]} Bb7 {[%emt 0:00:08]} 12. Bc2 {[%emt 0:00:07]} Re8 {[%emt 0:00:05]} 13. Nf1 {[%emt 0:00:27]} Bf8 {[%emt 0:00:07]} 14. Ng3 {[%emt 0:00:40]} g6 {[%emt 0:00:07]} 15. Bg5 {[%emt 0:03:40]} h6 {[%emt 0:00:09]} 16. Bd2 {[%emt 0:00:04]} c5 {[%emt 0:00:16]} 17. d5 {[%emt 0:17:15]} c4 {[%emt 0:00:08]} 18. b3 {[%emt 0:01:23]} Qc7 {[%emt 0:07:05]} 19. Qe2 {[%emt 0:14:47]} Rec8 {[%emt 0:07:26]} 20. Reb1 {[%emt 0:09:26]} Nb6 {[%emt 0:11:29]} 21. Nf1 {[%emt 0:00:59]} Nfd7 {[%emt 0:00:57]} 22. Ne3 {[%emt 0:00:33]} h5 {[%emt 0:03:33]} 23. bxc4 {[%emt 0:07:36]} Nxc4 {[%emt 0:05:06]} 24. Nxc4 {[%emt 0:00:29]} Qxc4 {[%emt 0:00:04]} 25. Qxc4 {[%emt 0:21:53]} Rxc4 {[%emt 0:00:56]} 26. Ne1 {[%emt 0:01:51]} Kh7 {[%emt 0:09:22]} 27. a4 {[%emt 0:06:28]} Nc5 {[%emt 0:09:36]} 28. f3 {[%emt 0:05:08]} Bh6 {[%emt 0:02:12]} 29. Bxh6 {[%emt 0:01:24]} Kxh6 {[%emt 0:00:03]} 30. axb5 {[%emt 0:00:08]} Rxc3 {[%emt 0:00:09]} 31. bxa6 {[%emt 0:00:53]} Rxa6 {[%emt 0:01:02]} 32. Rxa6 {[%emt 0:00:41]} Bxa6 {[%emt 0:00:04]} 33. Kf2 {[%emt 0:00:14]} Rxc2+ {[%emt 0:28:18]} 34. Nxc2 {[%emt 0:00:25]} Bd3 {[%emt 0:00:03]} 35. Rb2 {[%emt 0:05:49]} Bxe4 {[%emt 0:00:05]} 36. Nb4 {[%emt 0:00:45]} Bf5 {[%emt 0:01:20]} 37. g4 {[%emt 0:00:23]} hxg4 {[%emt 0:00:14]} 38. hxg4 {[%emt 0:00:10]} Bc8 {[%emt 0:05:25]} 39. Ke3 {[%emt 0:01:58]} Kg5 {[%emt 0:02:29]} 40. Ra2 {[%emt 0:00:00]} Bb7 {[%emt 0:00:00]} 41. Rh2 {[%emt 0:09:57]} Kf6 {[%emt 0:10:45]} 42. Rh8 {[%emt 0:04:05]} Nd7 {[%emt 0:06:50]} 43. Nc6 {[%emt 0:06:39]} Kg5 {[%emt 0:00:52]} 44. Rd8 {[%emt 0:06:14]} Nf6 {[%emt 0:05:06]} 45. Rxd6 {[%emt 0:01:19]} Nxd5+ {[%emt 0:00:10]} 46. Rxd5 {[%emt 0:01:35]} Bxc6 {[%emt 0:00:05]} 47. Rxe5+ {[%emt 0:00:09]} Kf6 {[%emt 0:00:15]} 48. Ra5 {[%emt 0:01:14]} Bd7 {[%emt 0:01:23]} 49. Ra6+ {[%emt 0:00:12]} Kg5 {[%emt 0:00:50]} 50. Rd6 {[%emt 0:02:37]} Be6 {[%emt 0:00:21]} 51. Ke4 {[%emt 0:00:27]} Kf6 {[%emt 0:00:09]} 52. Ra6 {[%emt 0:01:10]} g5 {[%emt 0:00:14]} 53. Rb6 {[%emt 0:01:32]} Ke7 {[%emt 0:00:06]} 54. Rb7+ {[%emt 0:01:08]} Kf6 {[%emt 0:00:13]} 55. Rb5 {[%emt 0:01:14]} Bd7 {[%emt 0:00:11]} 56. Rc5 {[%emt 0:00:12]} Be6 {[%emt 0:00:17]} 57. Rc7 {[%emt 0:00:17]} Bb3 {[%emt 0:00:26]} 58. Rc1 {[%emt 0:01:02]} Be6 {[%emt 0:00:07]} 59. Rh1 {[%emt 0:00:09]} Ke7 {[%emt 0:02:06]} 60. Rh7 {[%emt 0:00:49]} Kf6 {[%emt 0:00:04]} 61. Rh6+ {[%emt 0:00:24]} Kg7 {[%emt 0:00:41]} 62. Rh2 {[%emt 0:00:17]} f6 {[%emt 0:00:26]} 63. Rb2 {[%emt 0:00:17]} Kf7 {[%emt 0:00:07]} 64. Rb6 {[%emt 0:00:13]} Ke7 {[%emt 0:00:05]} 65. Kd4 {[%emt 0:00:17]} Kf7 {[%emt 0:00:06]} 66. Kc5 {[%emt 0:00:15]} Ke7 {[%emt 0:00:19]} 67. Rb7+ {[%emt 0:00:11]} Kf8 {[%emt 0:00:17]} 68. Kd6 {[%emt 0:00:34]} Bc4 {[%emt 0:00:06]} 69. Rb4 {[%emt 0:00:52]} Ba2 {[%emt 0:01:25]} 70. Ra4 {[%emt 0:01:36]} Bb3 {[%emt 0:00:07]} 71. Rb4 {[%emt 0:00:20]} Ba2 {[%emt 0:00:11]} 72. f4 {[%emt 0:00:30]} gxf4 {[%emt 0:00:14]} 73. Rxf4 {[%emt 0:00:23]} Kf7 {[%emt 0:00:26]} 74. g5 {[%emt 0:00:39]} Kg6 {[%emt 0:00:04]} 75. gxf6 {[%emt 0:00:54]} Kf7 {[%emt 0:00:04]} 76. Ke5 {[%emt 0:00:04]} Bb3 {[%emt 0:00:25]} 77. Rb4 {[%emt 0:00:09]} Ba2 {[%emt 0:00:10]} 78. Kf5 {[%emt 0:00:20]} Bd5 {[%emt 0:00:38]} 79. Rb6 {[%emt 0:00:27]} Bc4 {[%emt 0:00:27]} 80. Rb7+ {[%emt 0:00:27]} Kf8 {[%emt 0:00:05]} 81. Rc7 {[%emt 0:00:03]} Ba2 {[%emt 0:00:37]} 82. Rc2 {[%emt 0:00:44]} Bb1 {[%emt 0:00:05]} 83. f7 {[%emt 0:00:19]} Kxf7 {[%emt 0:00:06]} 84. Ke5 {[%emt 0:00:02]} Bxc2 {[%emt 0:00:06]} 1/2-1/2

[Event "5th EKA IIFL Investment 2019"]
[Site "Mumbai"]
[Date "2019.12.31"]
[Round "2.39"]
[White "Tiwari, Arjun"]
[Black "Sundararajan, Kidambi"]
[Result "1/2-1/2"]
[ECO "C00"]
[WhiteElo "2101"]
[BlackElo "2414"]
[Annotator "ChessBase"]
[PlyCount "48"]
[EventDate "2019.12.30"]
[EventType "swiss"]
[EventCountry "IND"]
[SourceTitle "playchess.com"]
[Source "ChessBase"]
[SourceQuality "1"]
[TimeControl "40/5400+30:1800+30"]

1. e4 {[%emt 0:00:00]} e6 {[%emt 0:00:00]} 2. d3 {[%emt 0:00:00]} d5 {[%emt 0:00:15]} 3. Nd2 {[%emt 0:00:00]} c5 {[%emt 0:00:21]} 4. Ngf3 {[%emt 0:00:00]} Nc6 {[%emt 0:00:07]} 5. g3 {[%emt 0:00:01]} Bd6 {[%emt 0:00:42]} 6. Bg2 {[%emt 0:00:08]} Nge7 {[%emt 0:00:06]} 7. O-O {[%emt 0:00:06]} O-O {[%emt 0:00:15]} 8. Re1 {[%emt 0:00:34]} Bc7 {[%emt 0:01:08]} 9. c3 {[%emt 0:00:38]} b6 10. a3 {[%emt 0:04:56]} dxe4 {[%emt 0:06:29]} 11. dxe4 {[%emt 0:00:40]} a5 {[%emt 0:03:10]} 12. a4 {[%emt 0:01:43]} Ba6 {[%emt 0:05:51]} 13. Bf1 {[%emt 0:03:02]} Bxf1 {[%emt 0:01:04]} 14. Kxf1 {[%emt 0:00:17]} e5 {[%emt 0:08:28]} 15. Nc4 {[%emt 0:03:22]} Qc8 {[%emt 0:00:20]} 16. Kg2 {[%emt 0:02:22]} Qe6 {[%emt 0:01:31]} 17. Qb3 {[%emt 0:06:58]} h6 {[%emt 0:06:48]} 18. Nfd2 {[%emt 0:02:26]} Rad8 {[%emt 0:04:05]} 19. Na3 {[%emt 0:11:45]} Qg6 {[%emt 0:05:08]} 20. Nb5 {[%emt 0:02:10]} Bb8 {[%emt 0:00:34]} 21. Nc4 {[%emt 0:03:17]} Nc8 {[%emt 0:08:53]} 22. Nba3 {[%emt 0:22:07]} Bc7 {[%emt 0:00:47]} 23. Nb5 {[%emt 0:00:11]} Bb8 {[%emt 0:00:16]} 24. Nba3 {[%emt 0:00:07]} Bc7 {[%emt 0:09:32]} 1/2-1/2